bitfinex/quotes_BTCUSD_20240701
["timestamp","ask_amount","ask_price","bid_price","bid_amount"]
[1719822818025,0.05304505,63145.0,63144.0,0.158368]
[1719822818255,0.05304331,63145.0,63144.0,0.158368]
[1719822818496,0.06408325,63145.0,63144.0,0.158368]
[1719822818723,0.06408325,63145.0,63144.0,0.161535]
[1719822818963,0.06408325,63145.0,63144.0,0.158368]
[1719822819184,0.06408325,63145.0,63144.0,0.0791865]
[1719822819404,0.06408325,63145.0,63144.0,0.24072149]
[1719822819612,0.06398301,63145.0,63144.0,0.9451265]
[1719822820236,0.01273383,63145.0,63144.0,0.9451265]
[1719822820652,0.01273383,63145.0,63144.0,0.5542905]
[1719822820653,0.06390707,63145.0,63144.0,0.5542905]
[1719822820860,0.06390707,63145.0,63144.0,0.7518905]
[1719822821522,0.06407619,63145.0,63144.0,0.7518905]
[1719822822207,0.06407619,63145.0,63144.0,0.8259905]
[1719822823198,0.06407619,63145.0,63144.0,1.1427265]
[1719822823988,0.01274348,63145.0,63144.0,1.3427265]
[1719822824173,0.01274348,63145.0,63144.0,1.82180148]
[1719822824459,0.002,63145.0,63144.0,1.82180148]
[1719822824664,0.002,63145.0,63144.0,1.74770148]
[1719822824899,0.002,63145.0,63144.0,1.82180148]
[1719822825289,0.1,63161.0,63154.0,0.1924]
[1719822825590,0.0468841,63160.0,63155.0,0.240919]
[1719822825804,0.0468841,63159.0,63155.0,0.240919]
[1719822826009,0.0468841,63158.0,63155.0,0.240919]
[1719822826185,0.0468841,63157.0,63156.0,0.1340809]
[1719822827680,0.04724268,63157.0,63156.0,0.1340809]
[1719822828082,0.04824268,63157.0,63156.0,0.1340809]
[1719822828292,0.04824268,63157.0,63156.0,0.1390809]
[1719822830726,0.01173699,63157.0,63156.0,0.3005853]
[1719822830932,0.01176364,63157.0,63156.0,0.9339373]
[1719822831139,0.01176364,63157.0,63156.0,1.1264373]
[1719822831755,0.04841911,63157.0,63156.0,1.1264373]
[1719822833779,0.001,63157.0,63156.0,1.6431133]
[1719822833977,0.01170503,63157.0,63156.0,1.6431133]
[1719822834214,0.001,63157.0,63156.0,1.6431133]
[1719822834450,0.001,63157.0,63156.0,2.11896188]
[1719822834874,0.001,63157.0,63156.0,1.80228588]
[1719822835281,0.00084,63160.0,63159.0,1.715413]
[1719822835496,0.00084,63160.0,63159.0,1.95185198]
[1719822836595,0.00184,63160.0,63159.0,1.95885198]
[1719822837205,0.00184,63160.0,63159.0,1.95185198]
[1719822837407,0.00084,63160.0,63159.0,2.05184568]
[1719822838285,0.00084,63160.0,63159.0,2.05484568]
[1719822838778,0.00184,63160.0,63159.0,2.06284568]
[1719822838991,0.00284,63160.0,63159.0,2.07184568]
[1719822839149,0.00184,63160.0,63159.0,2.06084568]
[1719822839558,0.00284,63160.0,63159.0,2.07184568]
[1719822840485,0.00284,63160.0,63159.0,1.5928457]
[1719822841217,0.00184,63160.0,63159.0,1.5838457]
[1719822841859,0.00284,63160.0,63159.0,1.5928457]
[1719822842023,0.00184,63160.0,63159.0,1.5838457]
[1719822842424,0.00284,63160.0,63159.0,1.5928457]
[1719822843426,0.00284,63160.0,63159.0,0.3199937]
[1719822843668,0.10909116,63160.0,63159.0,0.3199937]
[1719822843876,0.10809116,63160.0,63159.0,0.3089937]
[1719822844050,0.10909116,63160.0,63159.0,0.3179937]
[1719822844554,0.10809116,63160.0,63159.0,0.3089937]
[1719822844735,0.10709116,63160.0,63159.0,0.2999937]
[1719822844912,0.10709116,63160.0,63159.0,0.3089937]
[1719822844913,0.10809116,63160.0,63159.0,0.3089937]
[1719822845117,0.10909116,63160.0,63159.0,0.3149937]
[1719822845521,0.01369116,63160.0,63159.0,0.3149937]
[1719822846327,0.01369116,63160.0,63159.0,0.86725093]
[1719822846957,0.01378542,63160.0,63159.0,0.86725093]
[1719822847581,0.01378542,63160.0,63159.0,0.55058993]
[1719822847779,0.01378542,63160.0,63159.0,0.3890937]
[1719822848807,0.01378654,63160.0,63159.0,0.3890937]
[1719822851504,0.04843526,63160.0,63159.0,0.3890937]
[1719822851921,0.04836619,63160.0,63159.0,0.3890937]
[1719822852373,0.01377797,63160.0,63159.0,0.3890937]
[1719822852576,0.04836739,63160.0,63159.0,0.3890937]
[1719822852977,0.04836739,63160.0,63159.0,0.3149937]
[1719822853545,0.04836739,63160.0,63159.0,0.7899847]
[1719822853954,0.04836739,63160.0,63159.0,0.4733237]
[1719822854887,0.04836739,63160.0,63159.0,0.1149937]
[1719822854888,0.16574563,63160.0,63159.0,0.1149937]
[1719822855091,0.16574431,63160.0,63159.0,0.015]
[1719822856473,0.32407231,63160.0,63159.0,0.015]
[1719822856682,0.64072831,63160.0,63159.0,0.015]
[1719822856892,0.95738431,63160.0,63159.0,0.015]
[1719822858122,0.91238,63160.0,63159.0,0.015]
[1719822858341,0.95723,63160.0,63159.0,0.015]
[1719822858546,1.04913,63160.0,63159.0,0.015]
[1719822860949,1.00428,63160.0,63159.0,0.015]
[1719822861149,1.04904666,63160.0,63159.0,0.015]
[1719822861566,1.57591361,63160.0,63159.0,0.015]
[1719822861768,1.67591361,63160.0,63159.0,0.015]
[1719822861949,1.74560935,63160.0,63159.0,0.015]
[1719822862309,1.7926881,63160.0,63159.0,0.015]
[1719822862522,1.74560935,63160.0,63159.0,0.015]
[1719822862749,1.73539858,63160.0,63159.0,0.015]
[1719822862947,1.74560935,63160.0,63159.0,0.015]
[1719822863624,1.74710591,63160.0,63159.0,0.015]
[1719822864080,1.74726354,63160.0,63159.0,0.015]
[1719822864560,1.81789473,63160.0,63159.0,0.015]
[1719822864750,1.60768396,63160.0,63159.0,0.015]
[1719822864924,1.80768396,63160.0,63159.0,0.015]
[1719822865090,1.60768396,63160.0,63159.0,0.015]
[1719822865925,1.46664661,63160.0,63159.0,0.015]
[1719822866391,1.46669723,63160.0,63159.0,0.015]
[1719822867393,1.25689723,63160.0,63159.0,0.015]
[1719822868828,0.94024123,63160.0,63159.0,0.006]
[1719822869030,0.15834,63155.0,63153.0,0.2833]
[1719822869233,0.15834,63155.0,63154.0,0.02864666]
[1719822869408,0.20465272,63155.0,63154.0,0.02864666]
[1719822869651,0.15834,63155.0,63154.0,0.02864666]
[1719822869853,0.20465292,63155.0,63154.0,0.02864666]
[1719822870238,0.20565292,63155.0,63154.0,0.02864666]
[1719822870442,0.20665292,63155.0,63154.0,0.03564666]
[1719822870635,0.04831292,63155.0,63154.0,0.03564666]
[1719822870842,0.04731292,63155.0,63154.0,0.03564666]
[1719822872155,0.04731292,63155.0,63154.0,0.04364666]
[1719822872360,0.04831292,63155.0,63154.0,0.04364666]
[1719822872947,0.002,63155.0,63154.0,0.04364666]
[1719822873208,0.04843038,63155.0,63154.0,0.04364666]
[1719822873420,0.002,63155.0,63154.0,0.04364666]
[1719822873622,0.04843051,63155.0,63154.0,0.04364666]
[1719822873977,0.04843051,63155.0,63154.0,1.12096166]
[1719822876064,0.04842374,63155.0,63154.0,1.12096166]
[1719822876512,0.03739647,63155.0,63154.0,1.12096166]
[1719822876715,0.04840957,63155.0,63154.0,1.12096166]
[1719822877092,0.04840957,63155.0,63154.0,0.80427566]
[1719822878238,0.04840957,63155.0,63154.0,0.48758966]
[1719822878470,0.04840957,63155.0,63154.0,0.04364666]
[1719822878897,0.04840957,63155.0,63154.0,0.20198966]
[1719822879499,0.04840957,63155.0,63154.0,0.04364666]
[1719822879944,0.04844283,63155.0,63154.0,0.04364666]
[1719822880787,0.20678283,63155.0,63154.0,0.04364666]
[1719822882122,0.04844283,63155.0,63154.0,0.04364666]
[1719822883125,0.002,63155.0,63154.0,0.04364666]
[1719822883328,0.04828202,63155.0,63154.0,0.04681316]
[1719822883533,0.01301717,63155.0,63154.0,0.04364666]
[1719822883761,0.04828208,63155.0,63154.0,0.04364666]
[1719822885176,0.04828208,63155.0,63154.0,0.04681313]
[1719822886281,0.01301764,63155.0,63154.0,0.04681313]
[1719822886482,0.04823735,63155.0,63154.0,0.04681313]
[1719822886892,0.04823735,63155.0,63154.0,0.04364666]
[1719822887520,0.20657735,63155.0,63154.0,0.04364666]
[1719822889482,0.17135764,63155.0,63154.0,0.04364666]
[1719822889682,0.04787915,63155.0,63154.0,0.04364666]
[1719822891113,0.04787915,63155.0,63154.0,0.13764666]
[1719822891383,0.04787915,63155.0,63154.0,0.14081313]
[1719822891863,0.04787915,63155.0,63154.0,0.04364666]
[1719822892766,0.03686151,63155.0,63154.0,0.04364666]
[1719822893026,0.04787124,63155.0,63154.0,0.04364666]
[1719822893269,0.41591124,63155.0,63154.0,0.04364666]
[1719822893510,0.41675124,63155.0,63154.0,0.04364666]
[1719822894232,0.44585974,63155.0,63154.0,0.04364666]
[1719822894679,0.76254074,63155.0,63154.0,0.04364666]
[1719822894911,0.76254074,63155.0,63154.0,0.015]
[1719822895419,0.44585974,63155.0,63154.0,0.015]
[1719822895875,0.4398798,63155.0,63154.0,0.015]
[1719822896108,0.44452747,63155.0,63154.0,0.015]
[1719822896345,0.37088,63155.0,63154.0,0.015]
[1719822896575,0.44452491,63155.0,63154.0,0.015]
[1719822898021,0.76120591,63155.0,63154.0,0.015]
[1719822899079,0.687561,63155.0,63154.0,0.015]
[1719822899235,0.76122005,63155.0,63154.0,0.015]
[1719822899433,1.27790105,63155.0,63154.0,0.015]
[1719822899684,1.32510807,63155.0,63154.0,0.015]
[1719822900007,1.12510807,63155.0,63154.0,0.015]
[1719822900623,1.07790105,63155.0,63154.0,0.015]
[1719822901360,1.03800503,63155.0,63154.0,0.015]
[1719822901598,1.07798866,63155.0,63154.0,0.015]
[1719822902085,1.27798866,63155.0,63154.0,0.015]
[1719822902512,1.14883302,63155.0,63154.0,0.015]
[1719822903890,0.91553077,63155.0,63154.0,0.015]
[1719822904111,0.86828866,63155.0,63154.0,0.03596666]
[1719822904312,0.83925251,63155.0,63154.0,0.03596666]
[1719822904533,0.794542,63155.0,63154.0,0.03596666]
[1719822904735,0.83922686,63155.0,63154.0,0.03596666]
[1719822905758,0.52254586,63155.0,63154.0,0.03596666]
[1719822907193,0.51166725,63155.0,63154.0,0.03596666]
[1719822907634,0.03664625,63155.0,63154.0,0.03596666]
[1719822909515,0.07654924,63155.0,63154.0,0.03596666]
[1719822910545,0.03664625,63155.0,63154.0,0.03596666]
[1719822910749,0.03718661,63155.0,63154.0,0.03596666]
[1719822910951,0.00284,63155.0,63154.0,0.03596666]
[1719822911385,0.03670124,63155.0,63154.0,0.03596666]
[1719822911589,0.19504124,63155.0,63154.0,0.03596666]
[1719822913877,0.19519293,63155.0,63154.0,0.03596666]
[1719822914397,1.02855493,63155.0,63154.0,0.015]
[1719822914604,0.91985493,63155.0,63154.0,0.015]
[1719822914805,0.98959876,63155.0,63154.0,0.015]
[1719822915441,1.02929007,63155.0,63154.0,0.015]
[1719822915652,1.02617198,63155.0,63154.0,0.015]
[1719822919196,0.93482667,63155.0,63154.0,0.015]
[1719822919375,0.86659347,63155.0,63154.0,0.02391]
[1719822920898,0.86659347,63155.0,63154.0,0.015]
[1719822920899,0.93541792,63155.0,63154.0,0.015]
[1719822921524,0.86659347,63155.0,63154.0,0.015]
[1719822922511,0.8565643,63155.0,63154.0,0.015]
[1719822922729,0.82760231,63155.0,63154.0,0.015]
[1719822922931,0.86736382,63155.0,63154.0,0.015]
[1719822923215,0.86736382,63155.0,63154.0,0.03559]
[1719822923426,0.55068282,63155.0,63154.0,0.03559]
[1719822923632,0.07566182,63155.0,63154.0,0.03559]
[1719822924483,0.12292127,63155.0,63154.0,0.03559]
[1719822925514,0.12423943,63155.0,63154.0,0.03559]
[1719822925711,0.28283027,63155.0,63154.0,0.03559]
[1719822927327,0.47853027,63155.0,63154.0,0.015]
[1719822927534,0.50216392,63155.0,63154.0,0.015]
[1719822928933,0.50217213,63155.0,63154.0,0.015]
[1719822929143,0.81885313,63155.0,63154.0,0.015]
[1719822931878,0.82446562,63155.0,63154.0,0.015]
[1719822932087,0.67917349,63155.0,63154.0,0.015]
[1719822932291,0.82442663,63155.0,63154.0,0.015]
[1719822932500,0.75007056,63155.0,63154.0,0.015]
[1719822932704,0.82451812,63155.0,63154.0,0.015]
[1719822935163,0.67917349,63155.0,63154.0,0.015]
[1719822935364,0.82437553,63155.0,63154.0,0.015]
[1719822936147,1.14105653,63155.0,63154.0,0.015]
[1719822938456,1.03581922,63155.0,63154.0,0.015]
[1719822938656,1.14082068,63155.0,63154.0,0.015]
[1719822941730,1.10090581,63155.0,63154.0,0.015]
[1719822941888,1.14088789,63155.0,63154.0,0.015]
[1719822942091,1.14088696,63155.0,63154.0,0.015]
[1719822942594,0.73770596,63155.0,63154.0,0.015]
[1719822942792,0.62850596,63155.0,63154.0,0.015]
[1719822943078,0.62850596,63155.0,63154.0,0.02767666]
[1719822944719,0.62850676,63155.0,63154.0,0.02767666]
[1719822944942,0.62850851,63155.0,63154.0,0.02767666]
[1719822947677,0.62850851,63155.0,63154.0,0.015]
[1719822947891,0.48347349,63155.0,63154.0,0.015]
[1719822948061,0.62849377,63155.0,63154.0,0.015]
[1719822948501,0.55756738,63155.0,63154.0,0.015]
[1719822948902,0.87424838,63155.0,63154.0,0.015]
[1719822949469,0.55756738,63155.0,63154.0,0.015]
[1719822950878,0.87424838,63155.0,63154.0,0.015]
[1719822951070,1.07624838,63155.0,63154.0,0.015]
[1719822951237,1.07622802,63155.0,63154.0,0.015]
[1719822951694,1.03626556,63155.0,63154.0,0.015]
[1719822951921,1.07622802,63155.0,63154.0,0.015]
[1719822954460,1.14593788,63155.0,63154.0,0.015]
[1719822954654,1.14595089,63155.0,63154.0,0.015]
[1719822957691,1.14600015,63155.0,63154.0,0.015]
[1719822959972,1.46068115,63155.0,63154.0,0.015]
[1719822960171,1.43808442,63155.0,63154.0,0.015]
[1719822960547,1.19965449,63155.0,63154.0,0.015]
[1719822960805,1.43868495,63155.0,63154.0,0.015]
[1719822961028,1.76557672,63155.0,63154.0,0.015]
[1719822961254,1.75536595,63155.0,63154.0,0.015]
[1719822961477,1.23868495,63155.0,63154.0,0.015]
[1719822963330,1.03969928,63155.0,63154.0,0.015]
[1719822963549,1.23879757,63155.0,63154.0,0.015]
[1719822963765,1.13429254,63155.0,63154.0,0.015]
[1719822963969,1.23878363,63155.0,63154.0,0.015]
[1719822964394,1.23878363,63155.0,63154.0,0.02837]
[1719822964598,1.23878363,63155.0,63154.0,0.015]
[1719822966260,1.19965449,63155.0,63154.0,0.015]
[1719822966520,1.43879984,63155.0,63154.0,0.015]
[1719822966941,1.75548084,63155.0,63154.0,0.015]
[1719822967630,1.75548084,63155.0,63134.0,0.009251]
[1719822967631,0.2,63146.0,63134.0,0.009251]
[1719822967863,0.168453,63110.0,63103.0,0.109251]
[1719822968106,1.72913549,63107.0,63103.0,0.109251]
[1719822968302,1.72913549,63107.0,63063.0,0.01904223]
[1719822968303,0.89539649,63093.0,63068.0,0.0717157]
[1719822968488,0.01,63064.0,63045.0,0.2680195]
[1719822968690,0.2,63079.0,63047.0,0.01]
[1719822968691,0.208,63052.0,63047.0,0.01]
[1719822968824,0.208,63052.0,63040.0,0.0126817]
[1719822968825,0.01942703,63051.0,63050.0,0.0680195]
[1719822969024,0.01942703,63051.0,63050.0,0.5688295]
[1719822969025,0.23478421,63051.0,63050.0,0.5688295]
[1719822969232,0.34907188,63051.0,63050.0,0.47581]
[1719822969428,0.34907188,63051.0,63050.0,0.5388295]
[1719822969429,0.70672612,63051.0,63050.0,0.5388295]
[1719822969657,0.00494199,63051.0,63050.0,0.5388295]
[1719822969852,0.1124,63070.0,63050.0,0.5388295]
[1719822969853,0.01888834,63073.0,63071.0,0.0630195]
[1719822970088,0.317047,63082.0,63081.0,0.0630195]
[1719822970308,1.30738758,63082.0,63081.0,0.0730195]
[1719822970449,1.35394372,63082.0,63081.0,0.0730195]
[1719822971256,1.03686275,63082.0,63081.0,0.0630195]
[1719822971458,1.03686277,63082.0,63081.0,0.0630195]
[1719822971664,1.03686277,63082.0,63081.0,0.0730195]
[1719822972071,1.35390977,63082.0,63081.0,0.0630195]
[1719822972274,0.70735,63082.0,63081.0,0.0630195]
[1719822972474,0.71935,63082.0,63081.0,0.0630195]
[1719822972857,0.39030449,63082.0,63081.0,0.0730195]
[1719822973012,0.0889,63089.0,63087.0,0.0730195]
[1719822973170,0.564418,63089.0,63088.0,0.0730195]
[1719822973457,0.39753724,63089.0,63088.0,0.0630195]
[1719822973829,0.265766,63089.0,63088.0,0.0630195]
[1719822974038,0.582778,63089.0,63088.0,0.0630195]
[1719822974442,0.589778,63089.0,63088.0,0.0730195]
[1719822974658,0.603778,63089.0,63088.0,0.0730195]
[1719822975919,0.596778,63089.0,63088.0,0.0730195]
[1719822976121,0.602778,63089.0,63088.0,0.0730195]
[1719822976328,0.91979,63089.0,63088.0,0.0730195]
[1719822976530,0.90579,63089.0,63088.0,0.0730195]
[1719822976732,0.91179,63089.0,63088.0,0.0730195]
[1719822976932,0.91279,63089.0,63088.0,0.0730195]
[1719822977226,0.90079,63089.0,63088.0,0.0730195]
[1719822977414,0.90779,63089.0,63088.0,0.0730195]
[1719822977617,0.91127557,63089.0,63088.0,0.0730195]
[1719822977818,0.90427557,63089.0,63088.0,0.0730195]
[1719822978017,0.90927557,63089.0,63088.0,0.0730195]
[1719822978219,0.92127557,63089.0,63088.0,0.0730195]
[1719822978425,0.90927557,63089.0,63088.0,0.0730195]
[1719822978860,0.97277257,63089.0,63088.0,0.0730195]
[1719822979065,0.97277257,63089.0,63088.0,0.0830195]
[1719822979201,0.97277257,63089.0,63088.0,0.0730195]
[1719822979202,0.96777257,63089.0,63088.0,0.0730195]
[1719822979905,0.97477257,63089.0,63088.0,0.0730195]
[1719822980252,1.44712355,63089.0,63088.0,0.0630195]
[1719822980453,0.158531,63079.0,63078.0,0.0630195]
[1719822980678,1.109717,63079.0,63078.0,0.0730195]
[1719822980796,1.109717,63079.0,63076.0,0.0630195]
[1719822980797,0.1984,63078.0,63076.0,0.0630195]
[1719822981054,0.1984,63078.0,63075.0,0.0630195]
[1719822981055,0.317077,63076.0,63075.0,0.0630195]
[1719822981242,1.40390507,63076.0,63075.0,0.0630195]
[1719822981444,1.34580856,63076.0,63075.0,0.0730195]
[1719822981645,1.34581249,63076.0,63075.0,0.0730195]
[1719822981898,1.21401147,63076.0,63075.0,0.0730195]
[1719822982068,1.21401147,63076.0,63063.0,0.0630195]
[1719822982069,0.158569,63064.0,63063.0,0.0630195]
[1719822982293,1.09132725,63064.0,63063.0,0.0730195]
[1719822982497,1.09132725,63064.0,63063.0,0.5487295]
[1719822982498,1.50846882,63064.0,63063.0,0.5487295]
[1719822982701,1.50846882,63064.0,63063.0,0.5387295]
[1719822982901,2.22330682,63064.0,63063.0,0.47571]
[1719822983297,1.72036882,63064.0,63063.0,0.47571]
[1719822983527,1.72036882,63064.0,63063.0,0.48571]
[1719822983528,1.72536882,63064.0,63063.0,0.48571]
[1719822983661,1.72536882,63064.0,63063.0,0.5487295]
[1719822983662,0.109318,63064.0,63063.0,0.5487295]
[1719822983868,0.408396,63073.0,63063.0,0.5687295]
[1719822984078,0.79273,63073.0,63072.0,0.0730195]
[1719822984274,0.317068,63078.0,63075.0,0.0730195]
[1719822984275,0.489615,63076.0,63075.0,0.0730195]
[1719822984483,0.489615,63076.0,63075.0,0.5486395]
[1719822984685,0.792692,63076.0,63075.0,0.5486395]
[1719822984904,1.109769,63076.0,63075.0,0.5486395]
[1719822985102,1.109769,63076.0,63075.0,0.53815928]
[1719822985311,1.109769,63076.0,63075.0,0.54815928]
[1719822985312,1.24156961,63076.0,63075.0,0.54815928]
[1719822985719,1.25056961,63076.0,63075.0,0.53815928]
[1719822985924,1.24156961,63076.0,63075.0,0.54815928]
[1719822986145,2.04806381,63076.0,63075.0,0.47562]
[1719822986352,2.0820885,63076.0,63075.0,0.47562]
[1719822986547,2.93511777,63076.0,63075.0,0.47562]
[1719822986753,2.94381549,63076.0,63075.0,0.47562]
[1719822987170,2.93481549,63076.0,63075.0,0.47562]
[1719822987374,2.6310827,63076.0,63075.0,0.47562]
[1719822987599,2.96225179,63076.0,63075.0,0.47562]
[1719822988015,3.62385879,63076.0,63075.0,0.47562]
[1719822988224,3.62385879,63076.0,63075.0,0.36162]
[1719822988225,3.83785879,63076.0,63075.0,0.36162]
[1719822988379,3.84209649,63076.0,63075.0,0.36162]
[1719822988623,3.84209649,63076.0,63075.0,0.073312]
[1719822988832,1.110088,63058.0,63057.0,0.06253928]
[1719822989039,1.50425596,63058.0,63057.0,0.07253928]
[1719822989262,1.50845292,63058.0,63057.0,0.06253928]
[1719822989990,1.50845292,63058.0,63050.0,0.000924]
[1719822989991,0.951594,63052.0,63051.0,0.01]
[1719822990196,0.2377,63057.0,63051.0,0.06253928]
[1719822990402,0.2377,63057.0,63051.0,0.53833928]
[1719822990403,0.95960624,63052.0,63051.0,0.53833928]
[1719822990603,0.95960624,63052.0,63051.0,0.4758]
[1719822990604,1.37253198,63052.0,63051.0,0.4758]
[1719822990779,1.37680424,63052.0,63051.0,0.4758]
[1719822991208,1.37680424,63052.0,63051.0,0.4858]
[1719822991209,1.21446526,63052.0,63051.0,0.4858]
[1719822991660,0.89726726,63052.0,63051.0,0.4858]
[1719822991835,0.91126726,63052.0,63051.0,0.4858]
[1719822992367,0.89726726,63052.0,63051.0,0.4858]
[1719822992574,0.59406926,63052.0,63051.0,0.54833928]
[1719822992774,0.59406926,63052.0,63051.0,0.55833928]
[1719822992775,0.27687126,63052.0,63051.0,0.55833928]
[1719822992968,0.59906926,63052.0,63051.0,0.54833928]
[1719822993178,0.91626726,63052.0,63051.0,0.54833928]
[1719822993379,0.91126726,63052.0,63051.0,0.54833928]
[1719822993732,0.91626726,63052.0,63051.0,0.54833928]
[1719822994114,0.91126726,63052.0,63051.0,0.54833928]
[1719822994515,0.00427226,63052.0,63051.0,0.63940561]
[1719822994737,0.158592,63055.0,63054.0,0.08253928]
[1719822995082,0.2625259,63055.0,63054.0,0.55831928]
[1719822995294,0.8968919,63055.0,63054.0,0.54831928]
[1719822995717,1.2140749,63055.0,63054.0,0.54831928]
[1719822996887,0.8968919,63055.0,63054.0,0.54831928]
[1719822997293,0.92184444,63055.0,63054.0,0.54831928]
[1719822997501,0.42515501,63055.0,63054.0,0.55831928]
[1719822997713,1.05552101,63055.0,63054.0,0.54831928]
[1719822997926,1.40164059,63055.0,63054.0,0.54831928]
[1719822998145,1.39564059,63055.0,63054.0,0.54831928]
[1719822998561,1.40364059,63055.0,63054.0,0.54831928]
[1719822998760,1.39564059,63055.0,63054.0,0.53831928]
[1719822998975,1.40464059,63055.0,63054.0,0.53831928]
[1719822999189,0.29450059,63055.0,63054.0,0.60324361]
[1719822999396,0.29450059,63055.0,63054.0,0.78183761]
[1719822999397,0.87456401,63055.0,63054.0,0.78183761]
[1719822999598,0.7129339,63055.0,63054.0,0.407294]
[1719822999801,0.7129339,63055.0,63054.0,0.3211486]
[1719823000018,0.7129339,63055.0,63054.0,0.4817426]
[1719823000019,0.0129339,63055.0,63054.0,0.4817426]
[1719823000232,0.31713,63066.0,63054.0,0.3231486]
[1719823000233,0.158578,63061.0,63054.0,0.3231486]
[1719823000434,0.05004039,63065.0,63054.0,0.3231486]
[1719823000435,0.29156246,63060.0,63056.0,0.158587]
[1719823000634,0.29156246,63060.0,63057.0,0.07969236]
[1719823000635,0.13021998,63059.0,63057.0,0.07969236]
[1719823000842,0.13021998,63058.0,63057.0,0.07969236]
[1719823001012,0.13021998,63058.0,63054.0,0.3211486]
[1719823001013,0.13397567,63058.0,63054.0,0.3211486]
[1719823001232,0.009,63055.0,63054.0,0.3211486]
[1719823001438,0.01,63055.0,63054.0,0.3231486]
[1719823001645,0.14397818,63055.0,63054.0,0.3231486]
[1719823001850,0.13497818,63055.0,63054.0,0.3231486]
[1719823002681,0.13397818,63055.0,63054.0,0.3211486]
[1719823002885,0.13497249,63055.0,63054.0,0.3211486]
[1719823003086,0.13497249,63055.0,63054.0,0.4797426]
[1719823003725,0.13597249,63055.0,63054.0,0.7989306]
[1719823003932,0.13221429,63055.0,63054.0,0.7989306]
[1719823004175,0.13121429,63055.0,63054.0,0.8019306]
[1719823004381,0.158573,63063.0,63056.0,0.158589]
[1719823004580,0.39263167,63062.0,63057.0,0.08286397]
[1719823004751,0.39263167,63062.0,63057.0,0.07969256]
[1719823004752,0.29263167,63061.0,63057.0,0.07969256]
[1719823004960,0.29640022,63060.0,63057.0,0.07969256]
[1719823005279,0.29263167,63059.0,63057.0,0.07969256]
[1719823005407,0.29263167,63058.0,63057.0,0.07969256]
[1719823005613,0.29640025,63058.0,63057.0,0.07969256]
[1719823006008,0.00376858,63058.0,63057.0,0.07969256]
[1719823006226,0.13440464,63058.0,63057.0,0.07969256]
[1719823006418,0.1,63062.0,63057.0,0.07969256]
[1719823006617,0.1,63062.0,63055.0,0.0031715]
[1719823006618,0.00377084,63058.0,63055.0,0.0031715]
[1719823006845,0.12563672,63057.0,63056.0,0.158588]
[1719823007018,0.1294053,63057.0,63056.0,0.95528298]
[1719823007203,0.1294053,63057.0,63056.0,1.11464604]
[1719823007402,0.12563672,63057.0,63056.0,1.11464604]
[1719823007814,0.12563672,63057.0,63056.0,0.79746804]
[1719823008212,0.12940756,63057.0,63056.0,0.79746804]
[1719823008410,0.12663672,63057.0,63056.0,0.80546804]
[1719823008657,0.28770969,63057.0,63056.0,0.80546804]
[1719823009265,0.1658025,63057.0,63056.0,0.166589]
[1719823009464,0.1658025,63057.0,63056.0,0.483767]
[1719823009846,0.1668025,63057.0,63056.0,0.485767]
[1719823012268,0.16681753,63057.0,63056.0,0.485767]
[1719823012470,0.16681753,63057.0,63056.0,0.5909325]
[1719823013091,0.16681753,63057.0,63056.0,0.9081105]
[1719823013295,0.0057737,63057.0,63056.0,1.68392748]
[1719823013557,0.158539,63076.0,63059.0,0.14995961]
[1719823013795,0.16659966,63075.0,63074.0,0.04736605]
[1719823013969,0.16659966,63075.0,63072.0,0.04736605]
[1719823014172,0.16106073,63074.0,63073.0,0.04736605]
[1719823014376,0.16660419,63074.0,63072.0,0.12808928]
[1719823014583,0.16106073,63073.0,63072.0,0.23927123]
[1719823014788,0.16106073,63073.0,63072.0,0.08072323]
[1719823014992,0.16782206,63073.0,63072.0,0.08072323]
[1719823015455,0.16515938,63073.0,63072.0,0.12809069]
[1719823015665,0.16515938,63073.0,63072.0,0.04736746]
[1719823015874,0.16615544,63073.0,63072.0,0.008]
[1719823016135,0.16615544,63073.0,63072.0,0.05536754]
[1719823016270,0.16715544,63073.0,63072.0,0.06836754]
[1719823016877,0.13604059,63073.0,63072.0,0.06836754]
[1719823017100,0.2944347,63073.0,63072.0,0.06836754]
[1719823017423,0.2944347,63073.0,63072.0,0.021]
[1719823018597,0.00876133,63073.0,63072.0,0.021]
[1719823018890,0.2945705,63073.0,63072.0,0.021]
[1719823019470,2.41206387,63073.0,63072.0,0.021]
[1719823019674,2.58811883,63073.0,63072.0,0.021]
[1719823020071,3.32593704,63073.0,63072.0,0.021]
[1719823020675,3.32493704,63073.0,63072.0,0.013]
[1719823020857,3.32493704,63073.0,63072.0,0.014]
[1719823020858,3.51269391,63073.0,63072.0,0.014]
[1719823021069,3.51262276,63073.0,63072.0,0.014]
[1719823021254,3.51262276,63073.0,63072.0,0.013]
[1719823021489,3.69842276,63073.0,63072.0,0.013]
[1719823021689,3.69742276,63073.0,63072.0,0.001]
[1719823022002,3.69742276,63073.0,63072.0,0.006]
[1719823022399,3.69742276,63073.0,63072.0,0.005]
[1719823022629,0.317194,63053.0,63049.0,0.163]
[1719823022828,0.38588331,63052.0,63043.0,0.1617]
[1719823022983,0.317214,63049.0,63043.0,0.21309498]
[1719823023194,0.44449231,63048.0,63043.0,0.21309498]
[1719823023392,0.28588331,63047.0,63043.0,0.21309498]
[1719823023650,0.16520778,63048.0,63043.0,0.21309498]
[1719823023651,0.12730813,63046.0,63043.0,0.21309498]
[1719823023862,0.12730813,63045.0,63044.0,0.09227617]
[1719823024088,0.13390691,63045.0,63044.0,0.32095798]
[1719823024288,0.13390691,63045.0,63044.0,0.63819598]
[1719823024494,0.158591,63056.0,63048.0,0.158606]
[1719823024728,0.158591,63056.0,63044.0,0.95542698]
[1719823024729,0.28020448,63055.0,63049.0,0.74892702]
[1719823024902,0.28020448,63054.0,63049.0,0.59039498]
[1719823025101,0.317158,63060.0,63049.0,0.74899898]
[1719823025102,0.28020448,63053.0,63049.0,0.74899898]
[1719823025283,0.12439843,63052.0,63050.0,0.1545793]
[1719823025482,0.12439843,63051.0,63050.0,0.31635505]
[1719823025685,0.001,63053.0,63051.0,0.35141157]
[1719823025885,0.001,63053.0,63052.0,0.12377169]
[1719823026087,0.001,63053.0,63052.0,0.40998995]
[1719823026267,0.001,63054.0,63052.0,1.01018995]
[1719823026756,0.001,63054.0,63053.0,0.158596]
[1719823027043,0.001,63054.0,63053.0,0.76195755]
[1719823027394,0.158581,63060.0,63053.0,0.758786]